Cogmind - Beta 14 @@@ ROGUE MODE // 2025.03.16 @ 23:03:45 Player: Juan Result: Destroyed by Y-45 Defender with Beam Rifle Performance ------------- Evolutions (1) 500 Regions Visited (2) 400 Robots Destroyed (18) 90 Value Destroyed (510) 510 Prototype IDs (0) 0 Alien Tech Used (0) 0 Bonus (0) 0 TOTAL SCORE: 1500 Bonus ------- None Cogmind --------- Core Integrity 0/400 Matter 300/300 Energy 100/100 System Corruption 0% Temperature Cool (27) Movement Core (200) Ox3 Location -9/Materials Parts ------- > --- POWER (1) -------- (None) > --- PROPULSION (3) --- (None) > --- UTILITY (3) ------ Small Storage Unit Small Storage Unit > --- WEAPON (2) ------- (None) > --- INVENTORY (8) ---- Ion Engine Wheel Compact Wheel Peak State ------------ > --- POWER ------------ Ion Engine > --- PROPULSION ------- Aluminum Leg Aluminum Leg Aluminum Leg > --- UTILITY ---------- Small Storage Unit Small Storage Unit Targeting Computer > --- WEAPON ----------- Medium Laser Assault Rifle > --- INVENTORY -------- Ion Engine Ion Engine Wheel Compact Wheel Medium Laser Light Assault Rifle [Rating: 9] Favorites ----------- Power Ion Engine Engine Ion Engine Propulsion Aluminum Leg Treads Light Treads Leg Aluminum Leg Utility Small Storage Unit Device Heat Sink Storage Small Storage Unit Processor Targeting Computer Weapon Medium Laser Energy Gun Medium Laser Ballistic Gun Assault Rifle Build | -11 -10 -9 ------- Run | Yrd Mat Mat Slots Evolved 2 | . . 2 Power . | . . . Propulsion 1 | . . 1 Utility 1 | . . 1 Weapon . | . . . Parts Attached 20 | 6 5 9 Power 3 | 1 1 1 Engine 3 | 1 1 1 Core . | . . . Reactor . | . . . Propulsion 7 | 2 2 3 Treads 2 | 2 . . Leg 5 | . 2 3 Wheel . | . . . Hover . | . . . Flight . | . . . Utility 5 | 1 2 2 Device 1 | . 1 . Storage 3 | 1 . 2 Processor 1 | . 1 . Hackware . | . . . Protection . | . . . Artifact . | . . . Weapon 5 | 2 . 3 Energy Gun 2 | 1 . 1 Energy Cannon . | . . . Ballistic Gun 3 | 1 . 2 Ballistic Cannon . | . . . Launcher . | . . . Special Weapon . | . . . Impact Weapon . | . . . Slashing Weapon . | . . . Piercing Weapon . | . . . Special Melee Weapon . | . . . Unidentified Prototypes . | . . . Parts Lost 12 | . 2 10 Power 3 | . 1 2 Propulsion 4 | . 1 3 Utility 1 | . . 1 Weapon 4 | . . 4 Highest Loss Streak 5 | . 1 5 To Critical Strikes . | . . . Average Slot Usage (%) 91 | . 97 82 Engine 12 | . 14 8 Treads 12 | . 20 . Leg 14 | . 7 27 Storage 16 | . 14 19 Processor 8 | . 10 5 Energy Gun 12 | . 14 9 Ballistic Gun 12 | . 14 10 Peak Build Rating 9 | 6 7 9 Average Rating 6 | 4 6 7 On Entrance 4 | . 6 7 Naked Turns . | . . . Heaviest Build 19 | 12 14 19 Greatest Support 40 | 40 40 30 Greatest Overweight (x) 3 | 3 . 1 Average Overweight (x) . | . . . Largest Inventory Capacity 8 | 8 8 8 Average Capacity 7 | 7 8 8 Most Carried 8 | 7 8 7 Average Carried 6 | 5 7 4 Final Capacity 8 | 8 8 8 Final Carried 7 | 6 7 3 Class Distribution -------------------- 100% | Mutant Dominant Class ---------------- Mutant | -10/Materials Mutant | -9/Materials Resources | -11 -10 -9 ----------- Run | Yrd Mat Mat Matter Collected 500 | 178 231 91 Remotely . | . . . Salvage Created 623 | . 432 191 Parts 34 | . 23 11 Haulers Intercepted . | . . . Recyclers Shooed 1 | . 1 . Parts Field Recycled . | . . . Retrieved Matter . | . . . Parts Self-Destructed . | . . . Prevented . | . . . Kills | -11 -10 -9 ------- Run | Yrd Mat Mat Combat Hostiles Destroyed 15 | . 11 4 Guns 14 | . 11 3 Classes Destroyed 6 | . 4 2 Worker 1 | . 1 . Watcher 2 | . 1 1 Swarmer 3 | . 3 . Grunt 10 | . 8 2 Brawler 1 | . . 1 Sentry 1 | . . 1 Best Kill Streak 4 | . 4 2 Combat Bots Only 3 | . 3 1 Max Kills in Single Turn 1 | . 1 1 Gunslinging . | . . . Exploded . | . . . Melee . | . . . Uniques/NPCs Destroyed . | . . . Combat | -11 -10 -9 -------- Run | Yrd Mat Mat Hostile Shots Fired 207 | . 63 144 Missed 56 | . 14 42 Damage Taken 1757 | . 529 1228 Core 546 | . 144 402 Absorbed by Shields . | . . . Core Remaining (%) 71 | 100 42 . Volleys Fired 60 | . 36 24 Largest 2 | . 2 2 Hottest 70 | . 70 70 Shots Fired 118 | . 72 46 Gun 118 | . 72 46 Cannon . | . . . Launcher . | . . . Special . | . . . Kinetic 60 | . 36 24 Thermal 58 | . 36 22 Explosive . | . . . Electromagnetic . | . . . Robot Hit Streak 14 | . 14 11 Robot Miss Streak 4 | . 4 2 Penetration Max . | . . . Secondary Targets 4 | . 1 3 Max Gunslinging Chain 1 | . 1 1 Shots Hit Robots 85 | . 48 37 Core Hits 30 | . 21 9 Critical Kills . | . . . Critical Parts Destroyed . | . . . Critical Strikes 3 | . 2 1 Burn 3 | . 2 1 Melee Attacks . | . . . Impact . | . . . Slashing . | . . . Piercing . | . . . Sneak Attacks . | . . . Combat Hostiles . | . . . Follow-up Attacks . | . . . Damage Inflicted 1026 | . 629 397 Guns 1026 | . 629 397 Cannons . | . . . Explosions . | . . . Melee . | . . . Ramming . | . . . Kinetic 462 | . 276 186 Thermal 564 | . 353 211 Explosive . | . . . Electromagnetic . | . . . Impact . | . . . Slashing . | . . . Piercing . | . . . Highest Corruption . | . . . Average Corruption . | . . . Corruption Purged . | . . . Corruption Blocked . | . . . Overload Shots . | . . . Overflow Damage . | . . . Projectiles . | . . . Explosions . | . . . Melee . | . . . Knockbacks . | . . . Impact . | . . . Kinetic . | . . . Secondary . | . . . Self-Inflicted Damage . | . . . Shots . | . . . Rammed . | . . . Targets Rammed . | . . . Kicked . | . . . Crushed . | . . . Highest Temperature 108 | . 108 88 Average Temperature 31 | . 35 24 Received Heat Transfer 573 | . 231 342 Siege Activations . | . . . Robots Corrupted . | . . . Combat Hostiles . | . . . Parts Fried . | . . . Impact Corruptions . | . . . Robots Melted 1 | . . 1 Combat Hostiles 1 | . . 1 Parts Melted 4 | . 1 3 Heat Transferred 1887 | . 1184 703 Parts Sabotaged . | . . . Parts Stolen . | . . . Parts Stripped . | . . . Power Chain Reactions . | . . . Alert | -11 -10 -9 ------- Run | Yrd Mat Mat Peak Influence 306 | . 306 166 Initial 62 | . . 62 Average 118 | . 147 114 Maximum Alert Level 1 | . 1 . Low Security (%) 87 | 100 77 100 Level 1 12 | . 22 . Level 2 . | . . . Level 3 . | . . . Level 4 . | . . . Level 5 . | . . . High Security . | . . . Max Security . | . . . Squads Dispatched 1 | . 1 . Investigation 1 | . 1 . Extermination . | . . . Reinforcement . | . . . Assault . | . . . Garrison . | . . . Intercept . | . . . Searches Triggered . | . . . Construction Impeded . | . . . Haulers Reinforced . | . . . Active Scanning Responses . | . . . Cargo Convoy Interrupts . | . . . Stealth | -11 -10 -9 --------- Run | Yrd Mat Mat Distress Signals 1 | . . 1 Communications Jammed . | . . . Distress Signals . | . . . Times Spotted 22 | . 13 9 Peak Tracking Total 5 | . 5 5 Tactical Retreats 2 | . 1 1 Traps | -11 -10 -9 ------- Run | Yrd Mat Mat Traps Triggered 3 | . 1 2 Indirectly . | . . . Trap Hack Attempts . | . . . Triggered . | . . . Disarmed 4 | . 4 . Reprogrammed . | . . . Reused . | . . . Traps Extracted . | . . . Installed . | . . . Triggered . | . . . Machines | -11 -10 -9 ---------- Run | Yrd Mat Mat Machines Disabled . | . . . Max in Single Turn . | . . . Machines Repaired . | . . . Machines Dismantled . | . . . Machines Sabotaged . | . . . Overloaded Fab Kills . | . . . Hacking | -11 -10 -9 --------- Run | Yrd Mat Mat Machines Accessed 7 | . 5 2 Terminals 4 | . 3 1 Fabricators . | . . . Repair Stations . | . . . Recycling Units 2 | . 2 . Scanalyzers 1 | . . 1 Garrison Access . | . . . Total Hacks 19 | . 14 5 Successful 13 | . 9 4 Failed 6 | . 5 1 Catastrophic 1 | . 1 . Database Lockouts . | . . . Manual 3 | . 3 . Terminals 9 | . 8 1 Fabricators . | . . . Repair Stations . | . . . Recycling Units 6 | . 6 . Scanalyzers 4 | . . 4 Garrison Access . | . . . Terminal Hacks 5 | . 5 . Emergency Access Points 1 | . 1 . Alert Level 1 | . 1 . Locate Traps 1 | . 1 . Disarm Traps 1 | . 1 . Zone Layout 1 | . 1 . Fabricator Hacks . | . . . Repair Station Hacks . | . . . Recycling Unit Hacks 4 | . 4 . Recycle Component 1 | . 1 . Process 1 | . 1 . Report Inventory 1 | . 1 . Retrieve Components 1 | . 1 . Scanalyzer 4 | . . 4 Insert Component 2 | . . 2 Analyze 2 | . . 2 Garrison Access Hacks . | . . . Unauthorized Hacks . | . . . Terminals . | . . . Fabricators . | . . . Repair Stations . | . . . Recycling Units . | . . . Scanalyzers . | . . . Garrison Access . | . . . Data Cores Recovered . | . . . Used . | . . . Hacking Detections 3 | . 1 2 Full Trace Events . | . . . Feedback Events . | . . . Feedback Blocked . | . . . Robot Schematics Acquired . | . . . Robots Built . | . . . Authchips . | . . . Time . | . . . Total Robot Build Rating . | . . . Part Schematics Acquired 2 | . . 2 Parts Built . | . . . Authchips . | . . . Time . | . . . Total Part Build Rating . | . . . Parts Repaired . | . . . Time . | . . . Parts Recycled 1 | . 1 . Recycled Matter 17 | . 17 . Retrieved Matter . | . . . Retrieved Components 9 | . 9 . Parts Scanalyzed 2 | . . 2 Part Schematics Acquired 2 | . . 2 Parts Damaged . | . . . Bothacking | -11 -10 -9 ------------ Run | Yrd Mat Mat Used RIF Installer . | . . . Robots Hacked . | . . . Non-combat . | . . . Combat . | . . . Robot Hacks Applied . | . . . Relay Couplers Released . | . . . Fabnet Peak Effective % . | . . . Robots Rewired . | . . . Allies Hacked . | . . . Hacks Repelled . | . . . Allies | -11 -10 -9 -------- Run | Yrd Mat Mat Total Allies . | . . . Largest Group . | . . . Highest-Rated Group . | . . . Highest-Rated Ally . | . . . Total Orders . | . . . Ally Attacks . | . . . Total Damage . | . . . Kills . | . . . Allies Corrupted . | . . . Allies Melted . | . . . Intel | -11 -10 -9 ------- Run | Yrd Mat Mat Robot Analysis Total . | . . . Derelict Logs Recovered . | . . . Drone Launches . | . . . Drone Recoveries . | . . . Exploration | -11 -10 -9 ------------- Run | Yrd Mat Mat Turns Passed 962 | 117 531 314 Spaces Moved 504 | 66 282 156 Core 19 | 19 . . Treads 218 | 47 171 . Legs 267 | . 111 156 Wheels . | . . . Hover . | . . . Flight . | . . . Fastest Speed 50 | 50 120 120 Average Speed 138 | 154 144 121 Slowest Speed 200 | 200 160 190 Overloaded Moves . | . . . Propulsion Burnouts . | . . . Robots Hopped . | . . . Cave-ins Triggered . | . . . Exploration Rate (%) 23 | 4 45 20 Regions Visited 2 Branch Regions . Pre-discovered Areas . | . . . Known Exits Taken . | . . . Unknown Exits Taken 2 | 1 1 . Scrap Searched . | . . . Spaces Dug . | . . . Terrain Destroyed . | . . . Melee . | . . . Projectile . | . . . AOE . | . . . Terrain Rammed . | . . . Walls Destroyed . | . . . Machines Disabled . | . . . Actions | -11 -10 -9 --------- Run | Yrd Mat Mat Total 650 | 78 334 238 Wait 53 | . 6 47 Move 502 | 65 281 156 Hop . | . . . Pick Up 11 | 7 4 . Fast Attach 10 | 5 2 3 Attach 10 | 1 3 6 Detach 3 | . 1 2 Swap . | . . . Drop 1 | . 1 . Fire 60 | . 36 24 Melee . | . . . Ram . | . . . Kick . | . . . Crush . | . . . Escape Stasis . | . . . Rewire . | . . . Trap . | . . . Miscellaneous . | . . . Route ------- -11/Scrapyard -10/Materials -9/Materials History --------- Turn | Location | Event 36 | -11/Scrapyard | Discovered new exit (range 15) 118 | -11/Scrapyard | Entered Materials 314 | -10/Materials | Build established: Mutant 452 | -10/Materials | Discovered new exit (range 9) 479 | -10/Materials | Core integrity fell below 50% 649 | -10/Materials | Entered another Materials area 649 | -9/Materials | Evolved 2 slots: Propulsion x1, Utility x1 949 | -9/Materials | Core integrity fell below 50% 958 | -9/Materials | Core integrity fell below 20% 963 | -9/Materials | Destroyed by Y-45 Defender with Beam Rifle Last Messages --------------- 00840_ K-01 Serf collects debris. 00844_ R-06 Scavenger collects Aluminum Leg. 00848_ R-06 Scavenger collects Sml. Laser. 00851_ Aluminum Leg destroyed. 00855_ R-06 Scavenger collects Hover Unit. 00857_ Acquired 35 matter. 00902_ K-01 Serf collects debris. 00918_ G-34 Mercenary destroyed. 00921_ Aluminum Leg destroyed. 00932_ S-10 Pest destroyed. 00935_ R-06 Scavenger collects Ion Engine. 00936_ Ion Engine destroyed. 00938_ Med. Laser destroyed. 00939_ R-06 Scavenger collects Aluminum Leg. 00942_ Aluminum Leg destroyed. 00942_ Critical hit (Burn: +37). 00942_ Lgt. Assault Rifle destroyed. 00943_ R-06 Scavenger collects Flight Unit. 00946_ R-06 Scavenger collects Lgt. Ion Engine. 00963_ Critical hit (Burn: +37). Map ----- +----------------------------------------------------+ | ?????????# #? #?????????????????????????????? | | ?????????# #? #?????????????????????????????? | | ?????????####/#### #?????????????????????????????? | | ?????###### #?????????????????????????????? | | ?????+ +?????????????????????????????? | | ?????###### #?????????????????????????????? | | ??????????### #?????????????????????????????? | | ??????#######/## #?????????????????????????????? | | ??????# # #?????????????????????????????? | | ??????# """ # #?????????????????????????????? | | ??????# """ # ##########????????????????????? | | ??????# """ # # #????????????????????? | | ??????# # # """ #????????????????????? | | ??????# """ # # """ #????????????????????? | | ??????# """ # # """ #????????????????????? | | ??????# """ + + #????????????????????? | | ??????# # # """ #????????????????????? | | ??????########## # """ #????????????????????? | | ???????????????# # """ #????????????????????? | | ???????????????# # #????????????????????? | | ???????????????+ ###+###/##????????????????????? | | ???????????????# #?# #?#Y#?????????????????????? | | ???????????????# ### ### #######+###???????????? | | ???????????????# rs % / ! #????????? | | ???????????????# [% as#### #????????? | | ???????????????# @ #????? #????????? | | ???????????????# #######+#??????? """ #????????? | | ???????????????# #????? ????????""??????????? | | ??????????????# "????? #???????????????????? | | ??????????????# ????# #???????????????????? | | ??????????????# ?????# #???????????????????? | | ??????????????#?????????# !#???????????????????? | | ????????????????????????# #???????????????????? | | ????????????????????????# #???????????????????? | | ????????????????????????# #???????????????????? | | ????????????????????????# #???????????????????? | | ????????????????????????##/###???????????????????? | | ?????????????????????????? ??????????????????????? | | ?????????????????????????? ??????????????????????? | | ?????????????????????????? ??????????????????????? | | ??????????????????????????#??????????????????????? | | ?????????????????????????????????????????????????? | | ?????????????????????????????????????????????????? | | ?????????????????????????????????????????????????? | | ?????????????????????????????????????????????????? | | ?????????????????????????????????????????????????? | | ?????????????????????????????????????????????????? | | ?????????????????????????????????????????????????? | | ?????????????????????????????????????????????????? | | ?????????????????????????????????????????????????? | +----------------------------------------------------+ Best States ------------- Heat Dissipation 35 Energy Generation 10 Energy Capacity 250 Matter Stores 300 Matter Capacity 300 Sight Range 16 Terrain Scan Density 10 Evasion (%) 55 Targeting Accuracy 5 Recoil Reduction 2 Item Schematics ----------------- Ion Engine | -9/Materials | Scanalyzed Wheel | -9/Materials | Scanalyzed Robot Schematics ------------------ None Fabricated ------------ Nothing Alien Tech Used ----------------- None Achievements -------------- None Challenges ------------ None Game ------ Seed WeldingNullCanceller Manual? 0 Play Time 00:23:06 Cumulative 10.8 hours Start 2025.03.16 @ 22:35:21 End 2025.03.16 @ 23:03:45 Sessions 1 Manual Loads 0 Difficulty Rogue Special Mode None Game No. 13 Rogue 13 Adventurer 0 Explorer 0 Win Type - Total 0 Types 0/0/0/0/0/0/0/0/0 Lore% 9 Gallery% 16 Achievement% 14 Wizard Run 0 Options --------- Layout 0 ASCII 0 Keyboard 1 Movement Vi Keybinds 0 Fullscreen 2 Font 24/Terminus Map View 76x50 Zoom Use 0% Tactical HUD 1 Map Filters NONE Filters NONE Steam 1 RUN: c8c4b326-31fb-484c-b25e-6f6c066010b5